Workbook

Sheet 封面
A9: 西安市阎良区2018年财政决算表
A18: 西安市阎良区财政局
A19: 2019-09-01

Sheet 目录
A1: 目 录
A2: 1、西安市阎良区2018年一般公共预算收入决算表 ………………………………………………………附表一
A3: 2、西安市阎良区2018年一般公共预算支出决算表 ………………………………………………………附表二
A4: 3、西安市阎良区2018年一般公共预算支出决算总表—按功能科目分类 ………………………………附表三
A5: 4、西安市阎良区2018年一般公共预算本级支出决算经济分类明细表 …………………………………附表四
A6: 5、西安市阎良区2018年一般公共预算本级基本支出决算明细表 ………………………………………附表五
A7: 6、西安市阎良区2018年一般公共预算税收返还和转移支付决算表 ……………………………………附表六
A8: 7、西安市阎良区2018年一般债务限额和余额情况决算表 ………………………………………………附表七
A9: 8、西安市阎良区2018年一般公共预算收支决算平衡表 …………………………………………………附表八
A10: 9、西安市阎良区2018年政府性基金预算收入决算表 ……………………………………………………附表九
A11: 10、西安市阎良区2018年政府性基金预算支出决算表……………………………………………………附表十
A12: 11、西安市阎良区2018年政府性基金预算支出情况表—按功能科目分类………………………………附表十一
A13: 12、西安市阎良区2018年政府性基金转移支付决算表……………………………………………………附表十二
A14: 13、西安市阎良区2018年专项债务限额和余额情况决算表 ……………………………………………附表十三
A15: 14、西安市阎良区2018年国有资本经营收入决算表………………………………………………………附表十四
A16: 15、西安市阎良区2018年国有资本经营支出决算表………………………………………………………附表十五
A17: 16、西安市阎良区2018年社会保险基金预算收入决算表…………………………………………………附表十六
A18: 17、西安市阎良区2018年社会保险基金预算支出决算表…………………………………………………附表十七
A19: 18、西安市阎良区2018年“三公”经费决算表……………………………………………………………附表十八

Sheet 一般收入
A1: 附表一
A2: 西安市阎良区2018年一般公共预算收入决算表
G3: 单位：万元
A4: 项 目 | B4: 2018年 | E4: 2017年决算数 | F4: 2018年决算数
B5: 年初预算数 | C5: 调整预算数 | D5: 决算数 | F5: 占调整预算％ | G5: 与上年比＋－％
A6: 一、税收收入 | B6: =B7+B19+B20 -> 89,430 | C6: =C7+C19+C20 -> 80,510 | D6: =D7+D19+D20 -> 84,935 | E6: =SUM(E7,E19,E20) -> 84,230 | F6: =D6/C6 -> 105.5% | G6: =D6/E6-1 -> 0.8%
A7: 工商税收 | B7: =SUM(B8:B18) -> 56,400 | C7: =SUM(C8:C18) -> 56,400 | D7: =SUM(D8:D18) -> 41,402 | E7: =SUM(E8:E18) -> 40,468 | F7: =D7/C7 -> 73.4% | G7: =D7/E7-1 -> 2.3%
A8: 增值税 | B8: =20350+190 -> 20,540 | C8: =20350+190 -> 20,540 | D8: 16,384 | E8: 19,166 | F8: 79.8% | G8: -14.5%
A9: 营业税 | D9: 44 | E9: 107 | G9: -58.9%
A10: 企业所得税 | B10: =3580+690 -> 4,270 | C10: =3580+690 -> 4,270 | D10: 4,029 | E10: 3,754 | F10: 94.4% | G10: 7.3%
A11: 个人所得税 | B11: 8,820 | C11: 8,820 | D11: 4,805 | E11: 4,895 | F11: 54.5% | G11: -1.8%
A12: 资源税 | B12: 50 | C12: 50
A13: 城市维护建设税 | B13: 5,780 | C13: 5,780 | D13: 3,137 | E13: 3,193 | F13: 54.3% | G13: -1.8%
A14: 房产税 | B14: 5,490 | C14: 5,490 | D14: 3,719 | E14: 3,031 | F14: 67.7% | G14: 22.7%
A15: 印花税 | B15: 2,290 | C15: 2,290 | D15: 2,648 | E15: 1,263 | F15: 115.6% | G15: 109.7%
A16: 城镇土地使用税 | B16: 4,090 | C16: 4,090 | D16: 1,665 | E16: 2,259 | F16: 40.7% | G16: -26.3%
A17: 土地增值税 | B17: 2,100 | C17: 2,100 | D17: 3,191 | E17: 1,159 | F17: 152.0% | G17: 175.3%
A18: 车船税 | B18: 2,970 | C18: 2,970 | D18: 1,780 | E18: 1,641 | F18: 59.9% | G18: 8.5%
A19: 耕地占用税 | B19: =28930+950+150 -> 30,030 | C19: =28930+950+150-19000 -> 11,030 | D19: 10,754 | E19: 41,122 | F19: 97.5% | G19: -73.8%
A20: 契税 | B20: 3,000 | C20: =3000+10080 -> 13,080 | D20: 32,779 | E20: 2,640 | F20: 250.6%
A21: 二、非税收入 | B21: =B22+B28+B29+B31+B32 -> 36,660 | C21: =C22+C28+C29+C31 -> 15,580 | D21: =D22+D28+D29+D31 -> 11,737 | E21: =SUM(E22,E28:E32) -> 34,709 | F21: 75.3% | G21: -66.2%
A22: 专项收入 | B22: =SUM(B24:B27) -> 29,440 | C22: =SUM(C23:C27) -> 9,360 | D22: =SUM(D23:D27) -> 1,766 | E22: =SUM(E23:E27) -> 26,672 | F22: 18.9% | G22: -93.4%
A23: 排污费收入
A24: 教育费附加及地方教育附加收入 | B24: 1,800 | C24: 1,800 | D24: 1,763 | E24: =1354+450 -> 1,804 | F24: 97.9% | G24: -2.3%
A25: 教育资金收入 | B25: =13820 -> 13,820 | C25: 3,780
A26: 农田水利建设资金收入 | B26: 13,820 | C26: 3,780
A27: 其他专项收入 | D27: 3 | E27: 24,868
A28: 行政事业性收费收入 | B28: 4,220 | C28: 4,220 | D28: 2,733 | E28: 4,589 | F28: 64.8% | G28: -40.4%
A29: 罚没收入 | B29: 1,000 | C29: 1,000 | D29: 1,328 | E29: 1,884 | F29: 132.8% | G29: -29.5%
A30: 国有资本经营收入 | E30: 171
A31: 国有资源（资产）有偿使用收入 | B31: 1,000 | C31: 1,000 | D31: 5,910 | E31: 1,190 | F31: 591.0% | G31: 396.6%
A32: 其他收入 | B32: 1,000 | E32: 203
A33: 一般公共预算收入小计 | B33: =B6+B21 -> 126,090 | C33: =C6+C21 -> 96,090 | D33: =D6+D21 -> 96,672 | E33: =E6+E21 -> 118,939 | F33: 100.6% | G33: -18.7%
A34: 上级补助收入 | B34: ※ | C34: ※ | D34: 120,862 | E34: 101,277 | F34: ※ | G34: ※
A35: 下级上解收入 | B35: ※ | C35: ※ | F35: ※ | G35: ※
A36: 地方政府债券转贷收入 | B36: ※ | C36: ※ | D36: 7,654 | E36: 37,030 | F36: ※ | G36: ※
A37: 上年结余 | B37: ※ | C37: ※ | D37: 2,000 | E37: 4,500 | F37: ※ | G37: ※
A38: 调入稳定调节基金 | B38: ※ | C38: ※ | D38: 167 | E38: 457 | F38: ※ | G38: ※
A39: 调入资金 | B39: ※ | C39: ※ | D39: 4,895 | E39: =17049 -> 17,049 | F39: ※ | G39: ※
B40: ※ | C40: ※ | F40: ※ | G40: ※
B41: ※ | C41: ※ | F41: ※ | G41: ※
A42: 一般公共预算收入总计 | B42: ※ | C42: ※ | D42: =SUM(D33:D41) -> 232,250 | E42: =SUM(E33:E41) -> 279,252 | F42: ※ | G42: ※

Sheet 一般支出
A1: 附表二
A2: 西安市阎良区2018年一般公共预算支出决算表
F3: 单位：万元
A4: 项 目 | B4: 2018年 | E4: 2017年决算数 | F4: 2018年决算数
B5: 年初预算数 | C5: 调整预算数 | D5: 决算数 | F5: 占调整预算％ | G5: 与上年比＋－％
A6: 一、一般公共服务支出 | B6: 18,677 | C6: 18,677 | D6: 17,304 | E6: 16,612 | F6: =D6/C6 -> 92.6% | G6: =D6/E6-1 -> 4.2%
A7: 二、国防支出 | D7: 44
A8: 三、公共安全支出 | B8: 8,387 | C8: 8,387 | D8: 11,549 | E8: 13,507 | F8: =D8/C8 -> 137.7% | G8: =D8/E8-1 -> -14.5%
A9: 四、教育支出 | B9: 24,150 | C9: =24150+10000 -> 34,150 | D9: 48,072 | E9: 37,148 | F9: =D9/C9 -> 140.8% | G9: 29.4%
A10: 五、科学技术支出 | B10: 1,070 | C10: 1,853 | D10: 2,146 | E10: 1,310 | F10: 115.8% | G10: 63.8%
A11: 六、文化体育与传媒支出 | B11: 843 | C11: 1,658 | D11: 1,943 | E11: 1,485 | F11: 117.2% | G11: 30.8%
A12: 七、社会保障和就业支出 | B12: 28,537 | C12: 28,537 | D12: 30,784 | E12: 34,873 | F12: 107.9% | G12: -11.7%
A13: 八、医疗卫生与计划生育支出 | B13: 18,860 | C13: 18,860 | D13: 25,387 | E13: 24,420 | F13: 134.6% | G13: 4.0%
A14: 九、节能环保支出 | B14: 210 | C14: 4,065 | D14: 4,468 | E14: 1,819 | F14: 109.9% | G14: 145.6%
A15: 十、城乡社区支出 | B15: 28,423 | C15: =27524+3054 -> 30,578 | D15: 29,252 | E15: 64,161 | F15: 95.7% | G15: -54.4%
A16: 十一、农林水支出 | B16: 12,453 | C16: =12453+1704+1808+443+307+727+132 -> 17,574 | D16: 34,112 | E16: 29,187 | F16: 194.1% | G16: 16.9%
A17: 十二、交通运输支出 | B17: 1,448 | C17: 2,123 | D17: 2,277 | E17: 1,791 | F17: 107.3% | G17: 27.1%
A18: 十三、资源勘探信息等支出 | B18: 2,250 | C18: =3215+814 -> 4,029 | D18: 3,967 | E18: 6,189 | F18: 98.5% | G18: -35.9%
A19: 十四、商业服务业等支出 | B19: 165 | C19: 811 | D19: 920 | E19: 888 | F19: 113.4% | G19: 3.6%
A20: 十五、金融支出 | B20: 245 | C20: 420 | D20: 471 | E20: 208 | F20: 112.1% | G20: 126.4%
A21: 十六、援助其他地区支出
A22: 十七、国土海洋气象等支出 | B22: 880 | C22: 780 | D22: 973 | E22: 1,006 | F22: 124.7% | G22: -3.3%
A23: 十八、住房保障支出 | B23: 10,650 | C23: 145 | D23: 179 | E23: 2,098 | F23: 123.4% | G23: -91.5%
A24: 十九、粮油物资储备支出 | B24: 360 | C24: 340 | D24: 387 | E24: 383 | F24: 113.8% | G24: 1.0%
A25: 二十、预备费 | B25: 1,600 | C25: 1,600
A26: 二十一、债务付息支出 | D26: 3,020 | E26: 2,217 | G26: 36.2%
A27: 二十二、其他支出 | D27: 100 | E27: 234 | G27: -57.3%
A28: 一般公共预算支出小计 | B28: =SUM(B6:B25) -> 159,208 | C28: =SUM(C6:C27) -> 174,587 | D28: =SUM(D6:D27) -> 217,355 | E28: =SUM(E6:E27) -> 239,536 | F28: =D28/C28 -> 124.5% | G28: -9.3%
A29: 上解上级支出 | B29: ※ | C29: ※ | D29: 5,144 | E29: 3,853 | F29: ※ | G29: ※
A30: 补助下级支出 | B30: ※ | C30: ※ | F30: ※ | G30: ※
A31: 地方政府债券还本支出 | B31: ※ | C31: ※ | D31: 5,464 | E31: 33,696 | F31: ※ | G31: ※
A32: 增设预算周转金 | B32: ※ | C32: ※ | F32: ※ | G32: ※
A33: 安排预算稳定调节基金 | B33: ※ | C33: ※ | D33: 4,287 | E33: 167 | F33: ※ | G33: ※
A34: 累计结余 | B34: ※ | C34: ※ | E34: 2,000 | F34: ※ | G34: ※
A35: 减：结转下年支出 | B35: ※ | C35: ※ | E35: 2,000 | F35: ※ | G35: ※
A36: 等：净结余 | B36: ※ | C36: ※ | F36: ※ | G36: ※
A37: 一般公共预算支出总计 | B37: ※ | C37: ※ | D37: =SUM(D28:D34) -> 232,250 | E37: =SUM(E28:E34) -> 279,252 | F37: ※ | G37: ※

Sheet 一般本级支出（功能分类）
B1: 附表三
A2: 阎良区2018年一般公共预算支出决算总表—按功能科目分类
M3: 单位：万元
A4: 科目编码 | B4: 科目名称 | C4: 2018年支出预算执行数 | K4: 2018年年初预算数 | L4: 2017年决算数 | M4: 2018年执行比例
C5: 执行数小计 | D5: 区本级财力支出 | E5: 上级转移支付支出 | G5: 动用上年结余 | H5: 调入资金 | I5: 债务收入 | J5: 调入稳定调节基金
E6: 返还及一般转移支付 | F6: 专项转移支付 | M6: 占预算％ | N6: 与上年比+－％
B7: 一般公共预算支出 | C7: =C8+C197+C216+C277+C321+C341+C387+C504+C572+C615+C639+C749+C781+C825+C846+C859+C899+C909+C935+C936+C939 -> 217,355 | D7: =D8+D197+D216+D277+D321+D341+D387+D504+D572+D615+D639+D749+D781+D825+D846+D859+D899+D909+D935+D936+D939 -> 96,672 | E7: 31,582 | F7: =F8+F197+F216+F277+F321+F341+F387+F504+F572+F615+F639+F749+F781+F825+F846+F859+F899+F909+F936+F939 -> 78,039 | G7: 2,000 | H7: 4,895 | I7: 4,000 | J7: 167 | K7: 159,209 | L7: 239,536 | M7: =C7/K7 -> 136.5% | N7: =C7/L7-1 -> -9.3%
A8: 201 | B8: 一般公共服务支出 | C8: =C9+C21+C30+C42+C54+C65+C76+C88+C97+C106+C115+C126+C130+C133+C136+C142+C149+C157+C164+C170+C176+C182+C188+C194 -> 17,304 | D8: =C8-E8-F8-G8-H8-I8-J8 -> 11,972 | E8: =E9+E21+E30+E42+E54+E76+E88+E97+E115+E106+E126+E130+E133+E136+E142+E149+E157+E164+E170+E176+E182+E188+E194 -> 4,916 | F8: 416 | G8: 0 | H8: 0 | I8: 0 | J8: 0 | K8: =K9+K21+K30+K42+K54+K65+K76+K88+K97+K106+K115+K126+K130+K136+K142+K149+K157+K164+K170+K176+K188 -> 18,677 | L8: 16,612 | M8: =C8/K8 -> 92.6% | N8: =C8/L8-1 -> 4.2%
A9: 20101 | B9: 人大事务 | C9: =SUM(C10:C20) -> 769 | D9: =C9-E9-F9-G9-H9-I9-J9 -> 755 | F9: =SUM(F10:F20) -> 14 | K9: =SUM(K10:K20) -> 670 | L9: 624 | M9: =C9/K9 -> 114.8% | N9: =C9/L9-1 -> 23.2%
A10: 2010101 | B10: 行政运行 | C10: 634 | D10: 634 | K10: 611 | L10: 577 | M10: =C10/K10 -> 103.8% | N10: =C10/L10-1 -> 9.9%
A11: 2010102 | B11: 一般行政管理事务 | C11: 65 | D11: 65 | K11: 13 | L11: 8
A12: 2010103 | B12: 机关服务 | D12: 0 | L12: 0
A13: 2010104 | B13: 人大会议 | C13: 43 | D13: 43 | K13: 24 | L13: 18 | N13: =C13/L13-1 -> 138.9%
A14: 2010105 | B14: 人大立法 | D14: 0 | L14: 0
A15: 2010106 | B15: 人大监督 | D15: 0 | L15: 4
A16: 2010107 | B16: 人大代表履职能力提升 | D16: 0 | L16: 0
A17: 2010108 | B17: 代表工作 | C17: 18 | D17: 4 | F17: 14 | K17: 22 | L17: 16 | M17: =C17/K17 -> 81.8% | N17: =C17/L17-1 -> 12.5%
A18: 2010109 | B18: 人大信访工作 | D18: 0 | L18: 1
A19: 2010150 | B19: 事业运行 | D19: 0 | L19: 0
A20: 2010199 | B20: 其他人大事务支出 | C20: 9 | D20: 9 | L20: 0
A21: 20102 | B21: 政协事务 | C21: =SUM(C22:C29) -> 626 | D21: 626 | F21: =SUM(F22:F29) -> 0 | K21: =SUM(K22:K29) -> 520 | L21: 560 | M21: =C21/K21 -> 120.4% | N21: =C21/L21-1 -> 11.8%
A22: 2010201 | B22: 行政运行 | C22: 514 | D22: 514 | K22: 461 | L22: 484 | M22: =C22/K22 -> 111.5% | N22: =C22/L22-1 -> 6.2%
A23: 2010202 | B23: 一般行政管理事务 | C23: 57 | D23: 57 | K23: 38 | L23: 51 | M23: =C23/K23 -> 150.0% | N23: =C23/L23-1 -> 11.8%
A24: 2010203 | B24: 机关服务 | D24: 0 | L24: 0
A25: 2010204 | B25: 政协会议 | C25: 25 | D25: 25 | K25: 15 | L25: 15 | N25: =C25/L25-1 -> 66.7%
A26: 2010205 | B26: 委员视察 | D26: 0 | L26: 2
A27: 2010206 | B27: 参政议政 | C27: 6 | D27: 6 | K27: 6 | L27: 8 | N27: =C27/L27-1 -> -25.0%
A28: 2010250 | B28: 事业运行 | D28: 0 | L28: 0
A29: 2010299 | B29: 其他政协事务支出 | C29: 24 | D29: 24 | L29: 0
A30: 20103 | B30: 政府办公厅(室)及相关机构事务 | C30: =SUM(C31:C41) -> 6,303 | D30: 3,113 | E30: =SUM(E31:E41) -> 3,190 | F30: =SUM(F31:F41) -> 0 | K30: =SUM(K31:K41) -> 9,970 | L30: 6,398 | M30: =C30/K30 -> 63.2% | N30: =C30/L30-1 -> -1.5%
A31: 2010301 | B31: 行政运行 | C31: 4,126 | D31: =C31-E31-F31-G31-H31-I31-J31 -> 1,926 | E31: 2,200 | K31: 8,351 | L31: 4,639 | M31: =C31/K31 -> 49.4% | N31: =C31/L31-1 -> -11.1%
A32: 2010302 | B32: 一般行政管理事务 | C32: 691 | D32: 361 | E32: 330 | K32: 327 | L32: 589 | N32: =C32/L32-1 -> 17.3%
A33: 2010303 | B33: 机关服务 | C33: 155 | D33: 155 | K33: 155 | L33: 100 | N33: =C33/L33-1 -> 55.0%
A34: 2010304 | B34: 专项服务 | D34: 0 | L34: 0
A35: 2010305 | B35: 专项业务活动 | D35: 0 | L35: 0
A36: 2010306 | B36: 政务公开审批 | D36: 0 | L36: 0
A37: 2010307 | B37: 法制建设 | D37: 0 | L37: 0
A38: 2010308 | B38: 信访事务 | C38: 177 | D38: 177 | K38: 60 | L38: 100 | N38: =C38/L38-1 -> 77.0%
A39: 2010309 | B39: 参事事务 | D39: 0 | L39: 0
A40: 2010350 | B40: 事业运行 | C40: 184 | D40: 184 | K40: 63 | L40: 175 | N40: =C40/L40-1 -> 5.1%
A41: 2010399 | B41: 其他政府办公厅(室)及相关机构事务支出 | C41: 970 | D41: 310 | E41: 660 | K41: 1,014 | L41: 795 | M41: =C41/K41 -> 95.7% | N41: =C41/L41-1 -> 22.0%
A42: 20104 | B42: 发展与改革事务 | C42: =SUM(C43:C53) -> 1,032 | D42: 1,032 | F42: =SUM(F43:F53) -> 0 | K42: =SUM(K43:K53) -> 640 | L42: 1,055 | N42: =C42/L42-1 -> -2.2%
A43: 2010401 | B43: 行政运行 | C43: 441 | D43: 441 | K43: 502 | L43: 354 | M43: =C43/K43 -> 87.8% | N43: =C43/L43-1 -> 24.6%
A44: 2010402 | B44: 一般行政管理事务 | C44: 47 | D44: 47 | K44: 15 | L44: 504
A45: 2010403 | B45: 机关服务 | D45: 0 | L45: 0
A46: 2010404 | B46: 战略规划与实施 | D46: 0 | L46: 20
A47: 2010405 | B47: 日常经济运行调节 | D47: 0 | L47: 0
A48: 2010406 | B48: 社会事业发展规划 | C48: 33 | D48: 33 | K48: 50 | L48: 10 | M48: =C48/K48 -> 66.0%
A49: 2010407 | B49: 经济体制改革研究 | D49: 0 | L49: 0
A50: 2010408 | B50: 物价管理 | C50: 16 | D50: 16 | K50: 20 | L50: 20 | M50: =C50/K50 -> 80.0% | N50: =C50/L50-1 -> -20.0%
A51: 2010409 | B51: 应对气候变化管理事务 | D51: 0 | L51: 0
A52: 2010450 | B52: 事业运行 | C52: 102 | D52: 102 | L52: 47 | N52: =C52/L52-1 -> 117.0%
A53: 2010499 | B53: 其他发展与改革事务支出 | C53: 393 | D53: 393 | K53: 53 | L53: 100
A54: 20105 | B54: 统计信息事务 | C54: =SUM(C55:C64) -> 381 | D54: 381 | K54: =SUM(K55:K64) -> 320 | L54: 319 | M54: =C54/K54 -> 119.1% | N54: =C54/L54-1 -> 19.4%
A55: 2010501 | B55: 行政运行 | C55: 232 | D55: 232 | K55: 164 | L55: 239 | M55: =C55/K55 -> 141.5% | N55: =C55/L55-1 -> -2.9%
A56: 2010502 | B56: 一般行政管理事务 | C56: 11 | D56: 11 | L56: 46 | N56: =C56/L56-1 -> -76.1%
A57: 2010503 | B57: 机关服务 | D57: 0 | L57: 0
A58: 2010504 | B58: 信息事务 | C58: 6 | D58: 6 | K58: 6 | L58: 9 | N58: =C58/L58-1 -> -33.3%
A59: 2010505 | B59: 专项统计业务 | C59: 13 | D59: 13 | K59: 14 | L59: 14 | M59: =C59/K59 -> 92.9% | N59: =C59/L59-1 -> -7.1%
A60: 2010506 | B60: 统计管理 | D60: 0 | L60: 3
A61: 2010507 | B61: 专项普查活动 | D61: 0 | L61: 0
A62: 2010508 | B62: 统计抽样调查 | C62: 42 | D62: 42 | K62: 7 | L62: 8
A63: 2010550 | B63: 事业运行 | C63: 5 | D63: 5 | K63: 92 | L63: 0 | M63: =C63/K63 -> 5.4%
A64: 2010599 | B64: 其他统计信息事务支出 | C64: 72 | D64: 72 | K64: 37 | L64: 0
A65: 20106 | B65: 财政事务 | C65: =SUM(C66:C75) -> 1,491 | D65: =SUM(D66:D75) -> 1,444 | E65: 0 | F65: 47 | G65: 0 | H65: 0 | I65: 0 | J65: 0 | K65: 1,060 | L65: 1,368 | M65: =C65/K65 -> 140.7% | N65: =C65/L65-1 -> 9.0%
A66: 2010601 | B66: 行政运行 | C66: 658 | D66: 658 | K66: 704 | L66: 637 | M66: =C66/K66 -> 93.5% | N66: =C66/L66-1 -> 3.3%
A67: 2010602 | B67: 一般行政管理事务 | C67: 135 | D67: 135 | K67: 149 | L67: 123 | M67: =C67/K67 -> 90.6% | N67: =C67/L67-1 -> 9.8%
A68: 2010603 | B68: 机关服务 | C68: 33 | D68: 33 | K68: 35 | L68: 35 | M68: =C68/K68 -> 94.3% | N68: =C68/L68-1 -> -5.7%
A69: 2010604 | B69: 预算改革业务 | D69: 0 | L69: 0
A70: 2010605 | B70: 财政国库业务 | D70: 0 | L70: 0
A71: 2010606 | B71: 财政监察 | C71: 28 | D71: 28 | K71: 30 | L71: 26 | M71: =C71/K71 -> 93.3% | N71: =C71/L71-1 -> 7.7%
A72: 2010607 | B72: 信息化建设 | C72: 60 | D72: 60 | K72: 65 | L72: 65 | M72: =C72/K72 -> 92.3% | N72: =C72/L72-1 -> -7.7%
A73: 2010608 | B73: 财政委托业务支出 | D73: 0 | L73: 0
A74: 2010650 | B74: 事业运行 | C74: 457 | D74: 457 | K74: 53 | L74: 396 | N74: =C74/L74-1 -> 15.4%
A75: 2010699 | B75: 其他财政事务支出 | C75: 120 | D75: 73 | F75: 47 | K75: 24 | L75: 86 | N75: =C75/L75-1 -> 39.5%
A76: 20107 | B76: 税收事务 | C76: =SUM(C77:C87) -> 1,790 | D76: 687 | E76: =SUM(E77:E87) -> 1,103 | K76: =SUM(K77:K87) -> 1,695 | L76: 1,921 | N76: =C76/L76-1 -> -6.8%
A77: 2010701 | B77: 行政运行 | C77: 78 | D77: =C77-E77-F77-G77-H77-I77-J77 -> 78 | K77: 20 | L77: 24
A78: 2010702 | B78: 一般行政管理事务 | C78: 1,682 | D78: 579 | E78: 1,103 | K78: 1,675 | L78: 1,897 | N78: =C78/L78-1 -> -11.3%
A79: 2010703 | B79: 机关服务 | D79: 0
A80: 2010704 | B80: 税务办案 | D80: 0
A81: 2010705 | B81: 税务登记证及发票管理 | D81: 0
A82: 2010706 | B82: 代扣代收代征税款手续费 | D82: 0
A83: 2010707 | B83: 税务宣传 | D83: 0
A84: 2010708 | B84: 协税护税 | D84: 0
A85: 2010709 | B85: 信息化建设 | D85: 0
A86: 2010750 | B86: 事业运行 | D86: 0
A87: 2010799 | B87: 其他税收事务支出 | C87: 30 | D87: 30
A88: 20108 | B88: 审计事务 | C88: =SUM(C89:C96) -> 267 | D88: 220 | E88: =SUM(E89:E96) -> 7 | F88: =SUM(F89:F96) -> 40 | K88: =SUM(K89:K96) -> 277 | L88: 235 | M88: =C88/K88 -> 96.4% | N88: =C88/L88-1 -> 13.6%
A89: 2010801 | B89: 行政运行 | C89: 144 | D89: 144 | K89: 190 | L89: 138 | M89: =C89/K89 -> 75.8% | N89: =C89/L89-1 -> 4.3%
A90: 2010802 | B90: 一般行政管理事务 | D90: 0 | L90: 2
A91: 2010803 | B91: 机关服务 | D91: 0 | L91: 0
A92: 2010804 | B92: 审计业务 | C92: 52 | D92: 12 | F92: 40 | K92: 60 | L92: 41 | M92: =C92/K92 -> 86.7% | N92: =C92/L92-1 -> 26.8%
A93: 2010805 | B93: 审计管理 | D93: 0 | L93: 0
A94: 2010806 | B94: 信息化建设 | C94: 19 | D94: 19 | K94: 20 | L94: 15 | M94: =C94/K94 -> 95.0% | N94: =C94/L94-1 -> 26.7%
A95: 2010850 | B95: 事业运行 | C95: 45 | D95: 45 | L95: 37 | N95: =C95/L95-1 -> 21.6%
A96: 2010899 | B96: 其他审计事务支出 | C96: 7 | D96: 0 | E96: 7 | K96: 7 | L96: 2
A97: 20110 | B97: 人力资源事务 | C97: =SUM(C98:C105) -> 104 | D97: 51 | F97: =SUM(F98:F105) -> 53 | K97: =SUM(K98:K105) -> 25 | L97: 94 | N97: =C97/L97-1 -> 10.6%
A98: 2011001 | B98: 行政运行 | C98: 28 | D98: 28 | K98: 3 | L98: 1
A99: 2011002 | B99: 一般行政管理事务 | C99: 3 | D99: 3
A100: 2011003 | B100: 机关服务 | D100: 0 | K100: 1
A101: 2011004 | B101: 政府特殊津贴 | D101: 0
A102: 2011005 | B102: 资助留学回国人员 | D102: 0
A103: 2011006 | B103: 军队转业干部安置 | D103: 0 | K103: 1 | L103: 1
A104: 2011007 | B104: 博士后日常经费 | D104: 0 | L104: 92
A105: 2011099 | B105: 其他人力资源事务支出 | C105: 73 | D105: 20 | F105: 53 | K105: 20
A106: 20111 | B106: 纪检监察事务 | C106: =SUM(C107:C114) -> 811 | D106: 468 | E106: =SUM(E107:E114) -> 343 | K106: =SUM(K107:K114) -> 760 | L106: 735 | M106: =C106/K106 -> 106.7% | N106: =C106/L106-1 -> 10.3%
A107: 2011101 | B107: 行政运行 | C107: 644 | D107: =C107-E107-F107-G107-H107-I107-J107 -> 301 | E107: =320+23 -> 343 | K107: 643 | L107: 548 | M107: =C107/K107 -> 100.2% | N107: =C107/L107-1 -> 17.5%
A108: 2011102 | B108: 一般行政管理事务 | C108: 104 | D108: 104 | K108: 72 | L108: 143 | M108: =C108/K108 -> 144.4% | N108: =C108/L108-1 -> -27.3%
A109: 2011103 | B109: 机关服务 | D109: 0 | L109: 0
A110: 2011104 | B110: 大案要案查处 | D110: 0 | L110: 20
A111: 2011105 | B111: 派驻派出机构 | D111: 0 | L111: 0
A112: 2011106 | B112: 中央巡视 | D112: 0 | K112: 45 | L112: 0
A113: 2011150 | B113: 事业运行 | C113: 25 | D113: 25 | L113: 24 | N113: =C113/L113-1 -> 4.2%
A114: 2011199 | B114: 其他纪检监察事务支出 | C114: 38 | D114: 38 | L114: 0
A115: 20113 | B115: 商贸事务 | C115: =SUM(C116:C125) -> 246 | D115: 154 | E115: =SUM(E116:E125) -> 92 | K115: =SUM(K116:K125) -> 100 | L115: 414 | N115: =C115/L115-1 -> -40.6%
A116: 2011301 | B116: 行政运行 | C116: 127 | D116: =C116-E116-F116-G116-H116-I116-J116 -> 127 | L116: 264 | N116: =C116/L116-1 -> -51.9%
A117: 2011302 | B117: 一般行政管理事务 | L117: 0
A118: 2011303 | B118: 机关服务 | L118: 0
A119: 2011304 | B119: 对外贸易管理 | L119: 0
A120: 2011305 | B120: 国际经济合作 | L120: 0
A121: 2011306 | B121: 外资管理 | L121: 0
A122: 2011307 | B122: 国内贸易管理 | L122: 0
A123: 2011308 | B123: 招商引资 | C123: 119 | D123: 27 | E123: 92 | K123: 100 | L123: 114 | M123: =C123/K123 -> 119.0% | N123: =C123/L123-1 -> 4.4%
A124: 2011350 | B124: 事业运行 | C124: 0 | D124: 0 | L124: 36
A125: 2011399 | B125: 其他商贸事务支出 | C125: 0 | D125: 0 | L125: 0
A126: 20115 | B126: 工商行政管理事务 | C126: =SUM(C127:C129) -> 52 | D126: 52 | K126: =SUM(K127:K129) -> 8 | L126: 29 | N126: =C126/L126-1 -> 79.3%
A127: 2011501 | B127: 行政运行 | C127: 8 | D127: 8 | K127: 8 | L127: 14 | N127: =C127/L127-1 -> -42.9%
A128: 2011502 | B128: 一般行政管理事务 | C128: 26 | D128: 26 | L128: 15 | N128: =C128/L128-1 -> 73.3%
A129: 2011599 | B129: 其他工商行政管理事务支出 | C129: 18 | D129: 18
A130: 20117 | B130: 质量技术监督与检验检疫事务 | C130: 8 | D130: 8 | K130: 10 | L130: 10 | M130: =C130/K130 -> 80.0% | N130: =C130/L130-1 -> -20.0%
A131: 2011701 | B131: 行政运行 | C131: 8 | D131: 8 | K131: 10 | L131: 10 | M131: =C131/K131 -> 80.0% | N131: =C131/L131-1 -> -20.0%
A132: 2011702 | B132: 一般行政管理事务
A133: 20123 | B133: 民族事务
A134: 2012301 | B134: 行政运行
A135: 2012399 | B135: 其他民族事务支出
A136: 20126 | B136: 档案事务 | C136: =SUM(C137:C141) -> 282 | D136: 282 | K136: =SUM(K137:K141) -> 250 | L136: 253 | M136: =C136/K136 -> 112.8% | N136: =C136/L136-1 -> 11.5%
A137: 2012601 | B137: 行政运行 | C137: 223 | D137: 223 | K137: 238 | L137: 228 | M137: =C137/K137 -> 93.7% | N137: =C137/L137-1 -> -2.2%
A138: 2012602 | B138: 一般行政管理事务 | C138: 17 | D138: 17 | K138: 12 | L138: 18 | M138: =C138/K138 -> 141.7% | N138: =C138/L138-1 -> -5.6%
A139: 2012603 | B139: 机关服务 | C139: 0 | D139: 0 | L139: 0
A140: 2012604 | B140: 档案馆 | C140: 0 | D140: 0 | L140: 7
A141: 2012699 | B141: 其他档案事务支出 | C141: 42 | D141: 42 | L141: 0
A142: 20128 | B142: 民主党派及工商联事务 | C142: =SUM(C143:C148) -> 72 | D142: 72 | K142: =SUM(K143:K148) -> 50 | L142: 64 | M142: =C142/K142 -> 144.0% | N142: =C142/L142-1 -> 12.5%
A143: 2012801 | B143: 行政运行 | C143: 59 | D143: 59 | K143: 41 | L143: 37 | M143: =C143/K143 -> 143.9% | N143: =C143/L143-1 -> 59.5%
A144: 2012802 | B144: 一般行政管理事务 | C144: 9 | D144: 9 | K144: 9 | L144: 27 | N144: =C144/L144-1 -> -66.7%
A145: 2012803 | B145: 机关服务 | L145: 0
A146: 2012804 | B146: 参政议政 | L146: 0
A147: 2012850 | B147: 事业运行 | L147: 0
A148: 2012899 | B148: 其他民主党派及工商联事务支出 | C148: 4 | D148: 4 | L148: 0
A149: 20129 | B149: 群众团体事务 | C149: =SUM(C150:C156) -> 263 | D149: 263 | K149: =SUM(K150:K156) -> 210 | L149: 210 | M149: =C149/K149 -> 125.2% | N149: =C149/L149-1 -> 25.2%
A150: 2012901 | B150: 行政运行 | C150: 168 | D150: 168 | K150: 157 | L150: 148 | M150: =C150/K150 -> 107.0% | N150: =C150/L150-1 -> 13.5%
A151: 2012902 | B151: 一般行政管理事务 | C151: 92 | D151: 92 | K151: 53 | L151: 62 | N151: =C151/L151-1 -> 48.4%
A152: 2012903 | B152: 机关服务 | C152: 0 | D152: 0 | L152: 0
A153: 2012904 | B153: 厂务公开 | C153: 0 | D153: 0 | L153: 0
A154: 2012905 | B154: 工会疗养休养 | C154: 0 | D154: 0 | L154: 0
A155: 2012950 | B155: 事业运行 | C155: 0 | D155: 0 | L155: 0
A156: 2012999 | B156: 其他群众团体事务支出 | C156: 3 | D156: 3 | L156: 0
A157: 20131 | B157: 党委办公厅(室)及相关机构事务 | C157: =SUM(C158:C163) -> 520 | D157: 520 | K157: =SUM(K158:K162) -> 525 | L157: 522 | M157: =C157/K157 -> 99.0% | N157: =C157/L157-1 -> -0.4%
A158: 2013101 | B158: 行政运行 | C158: 371 | D158: 371 | K158: 384 | L158: 374 | M158: =C158/K158 -> 96.6% | N158: =C158/L158-1 -> -0.8%
A159: 2013102 | B159: 一般行政管理事务 | C159: 90 | D159: 90 | K159: 91 | L159: 91 | M159: =C159/K159 -> 98.9% | N159: =C159/L159-1 -> -1.1%
A160: 2013103 | B160: 机关服务 | C160: 50 | D160: 50 | K160: 50 | L160: 50 | N160: =C160/L160-1 -> 0.0%
A161: 2013105 | B161: 专项业务 | C161: 0 | D161: 0 | L161: 0
A162: 2013150 | B162: 事业运行 | C162: 9 | D162: 9 | L162: 7 | N162: =C162/L162-1 -> 28.6%
A163: 2013199 | B163: 其他党委办公厅(室)及相关机构事务支出 | C163: 0 | D163: 0 | L163: 0
A164: 20132 | B164: 组织事务 | C164: =SUM(C165:C169) -> 592 | D164: 459 | E164: =SUM(E165:E169) -> 95 | F164: 38 | G164: 0 | H164: 0 | I164: 0 | J164: 0 | K164: 402 | L164: 543 | M164: =C164/K164 -> 147.3% | N164: =C164/L164-1 -> 9.0%
A165: 2013201 | B165: 行政运行 | C165: 258 | D165: 258 | K165: 279 | L165: 278 | M165: =C165/K165 -> 92.5% | N165: =C165/L165-1 -> -7.2%
A166: 2013202 | B166: 一般行政管理事务 | C166: 179 | D166: 168 | F166: 11 | K166: 123 | L166: 264 | M166: =C166/K166 -> 145.5% | N166: =C166/L166-1 -> -32.2%
A167: 2013203 | B167: 机关服务 | C167: 0 | D167: 0 | L167: 0
A168: 2013250 | B168: 事业运行 | C168: 31 | D168: 31 | L168: 1
A169: 2013299 | B169: 其他组织事务支出 | C169: 124 | D169: 2 | E169: 95 | F169: 27 | L169: 0
A170: 20133 | B170: 宣传事务 | C170: =SUM(C171:C175) -> 608 | D170: =C170-E170-F170-G170-H170-I170-J170 -> 483 | E170: =SUM(E171:E175) -> 86 | F170: 39 | G170: 0 | H170: 0 | I170: 0 | J170: 0 | K170: 460 | L170: 466 | M170: =C170/K170 -> 132.2% | N170: =C170/L170-1 -> 30.5%
A171: 2013301 | B171: 行政运行 | C171: 152 | D171: 152 | K171: 211 | L171: 144 | M171: =C171/K171 -> 72.0% | N171: =C171/L171-1 -> 5.6%
A172: 2013302 | B172: 一般行政管理事务 | C172: 192 | D172: 192 | K172: 182 | L172: 178 | M172: =C172/K172 -> 105.5% | N172: =C172/L172-1 -> 7.9%
A173: 2013303 | B173: 机关服务 | C173: 0 | D173: 0 | L173: 0
A174: 2013350 | B174: 事业运行 | C174: 114 | D174: 114 | K174: 42 | L174: 93 | N174: =C174/L174-1 -> 22.6%
A175: 2013399 | B175: 其他宣传事务支出 | C175: 150 | D175: 25 | E175: 86 | F175: 39 | K175: 25 | L175: 51 | N175: =C175/L175-1 -> 194.1%
A176: 20134 | B176: 统战事务 | C176: 78 | D176: 78 | K176: =SUM(K177:K181) -> 76 | L176: 74 | M176: =C176/K176 -> 102.6% | N176: =C176/L176-1 -> 5.4%
A177: 2013401 | B177: 行政运行 | C177: 39 | D177: 39 | K177: 44 | L177: 52 | M177: =C177/K177 -> 88.6% | N177: =C177/L177-1 -> -25.0%
A178: 2013402 | B178: 一般行政管理事务 | C178: 32 | D178: 32 | K178: 32 | L178: 15 | N178: =C178/L178-1 -> 113.3%
A179: 2013403 | B179: 机关服务 | C179: 0 | D179: 0 | L179: 0
A180: 2013450 | B180: 事业运行 | C180: 7 | D180: 7 | L180: 7
A181: 2013499 | B181: 其他统战事务支出 | C181: 0 | D181: =C181-E181-F181-G181-H181-I181-J181 -> 0 | L181: 0
A182: 20135 | B182: 对外联络事务 | D182: 0
A183: 2013501 | B183: 行政运行 | D183: 0
A184: 2013502 | B184: 一般行政管理事务 | D184: 0
A185: 2013503 | B185: 机关服务 | D185: 0
A186: 2013550 | B186: 事业运行 | D186: 0
A187: 2013599 | B187: 其他对外联络事务支出 | D187: 0
A188: 20136 | B188: 其他共产党事务支出(款) | C188: 737 | D188: 737 | K188: =SUM(K189:K193) -> 649 | L188: 594 | M188: =C188/K188 -> 113.6% | N188: =C188/L188-1 -> 24.1%
A189: 2013601 | B189: 行政运行 | C189: 523 | D189: 523 | K189: 493 | L189: 449 | M189: =C189/K189 -> 106.1% | N189: =C189/L189-1 -> 16.5%
A190: 2013602 | B190: 一般行政管理事务 | C190: 210 | D190: 210 | K190: 156 | L190: 145 | M190: =C190/K190 -> 134.6% | N190: =C190/L190-1 -> 44.8%
A191: 2013603 | B191: 机关服务 | C191: 0 | D191: 0 | L191: 0
A192: 2013650 | B192: 事业运行 | C192: 4 | D192: 4 | L192: 0
A193: 2013699 | B193: 其他共产党事务支出(项) | C193: 0 | D193: 0 | L193: 0
A194: 20199 | B194: 其他一般公共服务支出(款) | C194: 272 | D194: 40 | E194: =SUM(E195:E196) -> 0 | F194: =SUM(F195:F196) -> 232 | L194: 124 | N194: =C194/L194-1 -> 119.4%
A195: 2019901 | B195: 国家赔偿费用支出 | C195: 0 | D195: 0 | L195: 0
A196: 2019999 | B196: 其他一般公共服务支出(项) | C196: 272 | D196: 40 | F196: 232 | L196: 124 | N196: =C196/L196-1 -> 119.4%
A197: 203 | B197: 国防支出 | C197: =SUM(C198,C200,C202,C204,C214) -> 44 | D197: 1 | F197: 43
A198: 20301 | B198: 现役部队(款) | D198: 0
A199: 2030101 | B199: 现役部队(项) | D199: 0
A200: 20304 | B200: 国防科研事业(款) | D200: 0
... 746 more rows

Sheet 一般基本支出（经济分类）
A1: 附表四
A2: 西安市阎良区2018年一般公共预算本级支出决算经济分类明细表
C3: 单位:万元
A4: 项目 | B4: 决算数 | C4: 备注
A5: 支出合计 | B5: =SUM(B6,B11,B22,B30,B37,B41,B44,B48,B51,B57,B60,B65) -> 217,355
A6: 一、机关工资福利支出 | B6: 55,427
A7: 工资奖金津补贴 | B7: 48,452
A8: 社会保障缴费 | B8: 2,288
A9: 住房公积金 | B9: 4,619
A10: 其他工资福利支出 | B10: 68
A11: 二、机关商品和服务支出 | B11: 59,432
A12: 办公经费 | B12: 21,414
A13: 会议费 | B13: 264
A14: 培训费 | B14: 552
A15: 专用材料购置费 | B15: 4,806
A16: 委托业务费 | B16: 13,702
A17: 公务接待费 | B17: 58
A18: 因公出国(境)费用
A19: 公务用车运行维护费 | B19: 603
A20: 维修(护)费 | B20: 8,621
A21: 其他商品和服务支出 | B21: 9,412
A22: 三、机关资本性支出(一) | B22: 51,499
A23: 房屋建筑物购建 | B23: 7,795
A24: 基础设施建设 | B24: 31,259
A25: 公务用车购置 | B25: 95
A26: 土地征迁补偿和安置支出 | B26: 6,940
A27: 设备购置 | B27: 3,015
A28: 大型修缮 | B28: 2,270
A29: 其他资本性支出 | B29: 125
A30: 四、机关资本性支出(二) | B30: 7
A31: 房屋建筑物购建
A32: 基础设施建设
A33: 公务用车购置
A34: 设备购置 | B34: 7
A35: 大型修缮
A36: 其他资本性支出
A37: 五、对事业单位经常性补助
A38: 工资福利支出
A39: 商品和服务支出
A40: 其他对事业单位补助
A41: 六、对事业单位资本性补助
A42: 资本性支出(一)
A43: 资本性支出(二)
A44: 七、对企业补助 | B44: 1,721
A45: 费用补贴 | B45: 354
A46: 利息补贴 | B46: 124
A47: 其他对企业补助 | B47: 1,243
A48: 八、对企业资本性支出 | B48: 1,127
A49: 对企业资本性支出(一) | B49: 1,127
A50: 对企业资本性支出(二)
A51: 九、对个人和家庭的补助 | B51: 20,374
A52: 社会福利和救助 | B52: 19,145
A53: 助学金 | B53: 918
A54: 个人农业生产补贴
A55: 离退休费 | B55: 169
A56: 其他对个人和家庭补助 | B56: 142
A57: 十、对社会保障基金补助 | B57: 24,734
A58: 对社会保险基金补助 | B58: 24,734
A59: 补充全国社会保障基金
A60: 十一、债务利息及费用支出 | B60: 3,020
A61: 国内债务付息 | B61: 3,020
A62: 国外债务付息
A63: 国内债务发行费用
A64: 国外债务发行费用
A65: 十二、其他支出 | B65: 14
A66: 赠与
A67: 国家赔偿费用支出
A68: 对民间非营利组织和群众性自治组织补贴
A69: 其他支出 | B69: 14

Sheet 一般本级基本支出（经济分类)
A1: 附表五
A2: 西安市阎良区2018年一般公共预算本级基本支出决算明细表
C3: 单位:万元
A4: 项目 | B4: 决算数 | C4: 备注
A5: 支出合计 | B5: 67,068
A6: 一、机关工资福利支出 | B6: 55,134
A7: 工资奖金津补贴 | B7: 48,181
A8: 社会保障缴费 | B8: 2,282
A9: 住房公积金 | B9: 4,609
A10: 其他工资福利支出 | B10: 62
A11: 二、机关商品和服务支出 | B11: 9,208
A12: 办公经费 | B12: 5,113
A13: 会议费 | B13: 48
A14: 培训费 | B14: 214
A15: 专用材料购置费 | B15: 439
A16: 委托业务费 | B16: 2,219
A17: 公务接待费 | B17: 43
A18: 因公出国(境)费用
A19: 公务用车运行维护费 | B19: 369
A20: 维修(护)费 | B20: 640
A21: 其他商品和服务支出 | B21: 123
A22: 三、机关资本性支出(一) | B22: 29
A23: 房屋建筑物购建
A24: 基础设施建设 | B24: 23
A25: 公务用车购置
A26: 土地征迁补偿和安置支出
A27: 设备购置 | B27: 6
A28: 大型修缮
A29: 其他资本性支出
A30: 四、机关资本性支出(二)
A31: 房屋建筑物购建
A32: 基础设施建设
A33: 公务用车购置
A34: 设备购置
A35: 大型修缮
A36: 其他资本性支出
A37: 五、对事业单位经常性补助
A38: 工资福利支出
A39: 商品和服务支出
A40: 其他对事业单位补助
A41: 六、对事业单位资本性补助
A42: 资本性支出(一)
A43: 资本性支出(二)
A44: 七、对企业补助
A45: 费用补贴
A46: 利息补贴
A47: 其他对企业补助
A48: 八、对企业资本性支出
A49: 对企业资本性支出(一)
A50: 对企业资本性支出(二)
A51: 九、对个人和家庭的补助 | B51: 2,697
A52: 社会福利和救助 | B52: 2,537
A53: 助学金 | B53: 6
A54: 个人农业生产补贴
A55: 离退休费 | B55: 151
A56: 其他对个人和家庭补助 | B56: 3
A57: 十、对社会保障基金补助
A58: 对社会保险基金补助
A59: 补充全国社会保障基金
A60: 十一、债务利息及费用支出
A61: 国内债务付息
A62: 国外债务付息
A63: 国内债务发行费用
A64: 国外债务发行费用
A65: 十二、其他支出
A66: 赠与
A67: 国家赔偿费用支出
A68: 对民间非营利组织和群众性自治组织补贴
A69: 其他支出

Sheet 一般税收返还和转移支付
A1: 附表六
A2: 西安市阎良区2018年一般公共预算税收返还和转移支付决算表
B3: 单位：万元
A4: 项 目 | B4: 2018年
A5: 一、返还性收入 | B5: =SUM(B6:B9) -> 5,210
A6: 其中：增值税和消费税税收返还收入 | B6: 1,187
A7: 所得税基数返还收入 | B7: 1,172
A8: 营改增返还基数 | B8: 2,590
A9: 成品油价格和税费改革税收返还收入 | B9: 261
A10: 二、一般转移支付收入 | B10: =SUM(B11:B22) -> 37,613
A11: 其中；（1）均衡性转移支付 | B11: 3,465
A12: （2）县级基本财力保障机制奖补资金收入 | B12: 3,419
A13: （3）企业事业单位划转补助收入 | B13: 3,180
A14: （4）固定数额补助收入 | B14: 6,116
A15: （5）成品油价格和税费改革转移支付补助收入
A16: （6）基层公检法司转移支付收入 | B16: 758
A17: （7）义务教育等转移支付收入 | B17: 2,608
A18: （8）基本养老保险和低保等转移支付收入 | B18: 4,009
A19: （9）新型农村合作医疗等转移支付收入 | B19: 6,955
A20: （10）农村综合改革转移支付收入 | B20: 1,152
A21: （11）结算补助收入 | B21: 5,951
A22: （12）城乡居民医疗保险转移支付收入
A23: 三、专项转移转移支付收入 | B23: =SUM(B24:B42) -> 78,039
A24: 其中：（1）一般公共服务 | B24: =446-7 -> 439
A25: （2）国防支出 | B25: 43
A26: （2）公共安全 | B26: =1428-758 -> 670
A27: （3）教育 | B27: =17548-2608-4 -> 14,936
A28: （4）科学技术 | B28: =1050-9 -> 1,041
A29: （5）文化体育与传媒 | B29: =381-75 -> 306
A30: （6）社会保障和就业 | B30: =15851-4009 -> 11,842
A31: （7）医疗卫生与计划生育 | B31: =11652-6955 -> 4,697
A32: （8）节能环保 | B32: 4,241
A33: （9）城乡社区 | B33: 10,298
A34: （10）农林水 | B34: =27760-842-23.1 -> 26,895
A35: （11）交通运输 | B35: 546
A36: （12）资源勘探信息等 | B36: 1,110
A37: （13）商业服务业等 | B37: 624
A38: （14）金融 | B38: 62
A39: （15）国土海洋气象等 | B39: 10
A40: （16）住房保障 | B40: 179
A41: （17）粮油物资储备
A42: （18）其他收入 | B42: 100
A43: 四、地方政府一般债券转贷收入 | B43: =SUM(B44:B45) -> 7,654
A44: 其中： 转贷新增一般债券收入 | B44: 4,000
A45: 转贷置换一般债券收入 | B45: 3,654
A46: 一般公共预算补助收入总计 | B46: =B5+B10+B23+B43 -> 128,516
A47: 备注：无对其他地区转移支付

Sheet 一般债务
A1: 附表七
A2: 西安市阎良区2018年一般债务限额和余额情况决算表
I3: 单位：万元
A4: 项 目 | B4: 2018年初 | D4: 2018年债务转贷收入 | G4: 2018年债务转贷支出 | H4: 2018年末
B5: 限额 | C5: 债务余额 | D5: 合计 | E5: 新增债券 | F5: 置换债券 | H5: 限额 | I5: 债务余额
A6: 2018年底政府举债情况 | B6: 118,400 | C6: 98,326 | D6: =SUM(E6:F6) -> 7,654 | E6: 4,000 | F6: 3,654 | G6: 14,982 | H6: 118,400 | I6: 90,998

Sheet 一般收支平衡
A1: 附表八
A2: 西安市阎良区2018年一般公共预算收支决算平衡表
D3: 单位：万元
A4: 收 入 | C4: 支 出
A5: 项 目 | B5: 决算数 | C5: 项 目 | D5: 决算数
A6: 一般公共预算收入小计 | B6: 96,672 | C6: 一般公共预算支出小计 | D6: 217,355
A7: 上级补助收入 | B7: 120,862 | C7: 上解上级支出 | D7: 5,144
A8: 下级上解收入 | C8: 补助下级支出
A9: 地方政府债券收入 | B9: 7,654 | C9: 地方政府债券还本支出 | D9: 5,464
A10: 上年结余 | B10: 2,000 | C10: 转贷地方政府债券支出
A11: 调入预算稳定调节基金 | B11: 167 | C11: 增设预算周转金
A12: 调入资金 | B12: 4,895 | C12: 安排预算稳定调节基金 | D12: 4,287
A13: ※ | B13: ※ | C13: 累计结余
A14: ※ | B14: ※ | C14: 减：结转下年支出
A15: ※ | B15: ※ | C15: 等：净结余
A16: 一般公共预算收入总计 | B16: =SUM(B6:B12) -> 232,250 | C16: 一般公共预算支出总计 | D16: =SUM(D6:D13) -> 232,250

Sheet 基金预算收入
A1: 附表九
A2: 西安市阎良区2018年政府性基金预算收入决算表
F3: 单位：万元
A4: 项 目 | B4: 2018年 | D4: 2017年决算数 | E4: 2018年执行比例
B5: 预算数 | C5: 决算数 | E5: 占预算％ | F5: 与上年比+－％
A6: 一、政府住房基金收入
A7: 二、新型墙体材料专项基金收入 | D7: 292
A8: 三、城市公用事业附加收入 | D8: 102
A9: 四、城市基础设施配套费收入 | B9: 5,200 | C9: 6,101 | D9: 5,305 | E9: =D9/B9 -> 102.0% | F9: =C9/D9-1 -> 15.0%
A10: 五、国有土地使用权出让金收入 | C10: 274 | D10: 1,320 | F10: =C10/D10-1 -> -79.2%
A11: 六、国有土地收益基金收入 | B11: 5000 | C11: 10,907 | D11: 2,783 | F11: 291.9%
A12: 七、农业土地开发资金收入
A13: 八、污水处理费 | C13: 131 | D13: 42 | F13: 211.9%
A14: 九、彩票发行机构和彩票销售机构的业务费用
A15: 十、其他基金收入 | C15: 141 | D15: 35 | F15: 302.9%
A16: 政府性基金收入小计 | B16: =SUM(B6:B15) -> 10,200 | C16: =SUM(C6:C15) -> 17,554 | D16: =SUM(D6:D15) -> 9,879 | E16: =D16/B16 -> 96.9% | F16: 77.7%
A17: 上年结余收入 | B17: ※ | D17: ※ | E17: ※ | F17: ※
A18: 上级补助收入 | B18: ※ | C18: 14,535 | D18: ※ | E18: ※ | F18: ※
A19: 下级上解收入 | B19: ※ | D19: ※ | E19: ※ | F19: ※
A20: 地方政府债券收入 | B20: ※ | C20: 30,000 | D20: ※ | E20: ※ | F20: ※
A21: ※ | B21: ※ | C21: ※ | D21: ※ | E21: ※ | F21: ※
A22: 政府性基金收入总计 | B22: ※ | C22: =SUM(C16:C20) -> 62,089 | D22: ※ | E22: ※ | F22: ※

Sheet 基金支出
A1: 附表十
A2: 西安市阎良区2018年政府性基金预算支出决算表
E3: 单位：万元
A4: 项 目 | B4: 2018年 | D4: 2017年 决算数 | E4: 2017年决算数
B5: 预算数 | C5: 决算数 | E5: 占预算％ | F5: 与上年比+－％
A6: 一、教育支出
A7: 二、文化体育与传媒支出
A8: 三、社会保障和就业支出 | C8: 545 | D8: 413 | F8: =C8/D8-1 -> 32.0%
A9: 四、城乡社区支出 | B9: 10,200 | C9: 57,041 | D9: 12,544 | E9: =D9/B9 -> 123.0% | F9: =C9/D9-1 -> 354.7%
A10: 五、农林水支出
A11: 六、资源勘探信息等支出 | D11: 293 | F11: =C11/D11-1 -> -100.0%
A12: 七、商业服务业等支出
A13: 八、其他支出 | C13: 4,503 | D13: 1,245 | F13: =C13/D13-1 -> 261.7%
A14: 政府性基金支出小计 | B14: =SUM(B6:B13) -> 10,200 | C14: =SUM(C6:C13) -> 62,089 | D14: =SUM(D6:D13) -> 14,495 | E14: =D14/B14 -> 142.1% | F14: =C14/D14-1 -> 328.3%
A15: 上解支出 | B15: ※ | D15: ※ | E15: ※ | F15: ※
A16: 补助下级支出 | B16: ※ | D16: ※ | E16: ※ | F16: ※
A17: 地方政府债券还本支出 | B17: ※ | D17: ※ | E17: ※ | F17: ※
A18: 转贷地方政府债券支出 | B18: ※ | D18: ※ | E18: ※ | F18: ※
A19: 调出资金 | B19: ※ | D19: ※ | E19: ※ | F19: ※
A20: 年终结余 | B20: ※ | D20: ※ | E20: ※ | F20: ※
A21: 政府性基金支出总计 | B21: ※ | C21: =SUM(C14:C20) -> 62,089 | D21: ※ | E21: ※ | F21: ※

Sheet 基金支出—功能科目
A1: 附表十一
A2: 西安市阎良区2018年政府性基金预算支出情况表—按功能科目分类
I3: 单位：万元
A4: 科目编码 | B4: 科目名称 | C4: 2018年支出预算执行数 | G4: 2018年预算数 | H4: 2017年决算数 | I4: 2018年执行比例
C5: 执行数小计 | D5: 区本级财力支出 | E5: 上级转移支付支出
E6: 返还及一般转移支付 | F6: 专项转移支付 | I6: 占预算％ | J6: 与上年比+－％
B7: 政府性基金支出 | C7: =D7+F7 -> 62,089 | D7: =D8+D15+D51 -> 17,554 | E7: =E8+E15+E51 -> 0 | F7: =F8+F15+F51 -> 44,535 | G7: =G8+G15+G51 -> 10,200 | H7: 14,495
A8: 208 | B8: 社会保障和就业支出 | C8: 545 | F8: =SUM(F9:F14) -> 545 | H8: 413 | J8: =C8/H8-1 -> 32.0%
A9: 20822 | B9: 大中型水库移民后期扶持基金支出 | C9: 545 | F9: 545 | G9: 0 | H9: 413 | J9: =C9/H9-1 -> 32.0%
A10: 2082201 | B10: 移民补助 | C10: 0 | H10: 310
A11: 2082202 | B11: 基础设施建设和经济发展 | C11: 0 | H11: 96
A12: 2082299 | B12: 其他大中型水库移民后期扶持基金支出 | C12: 0 | H12: 7
A13: 20823 | B13: 小型水库移民扶助基金及对应专项债务收入安排的支出 | C13: 0 | G13: 0 | H13: 0
A14: 20860 | B14: 残疾人就业保障金支出 | C14: =D14+F14 -> 0
A15: 212 | B15: 城乡社区支出 | C15: 57,041 | D15: =SUM(D16:D38) -> 17,413 | E15: =SUM(E16:E38) -> 0 | F15: =SUM(F16:F38) -> 39,628 | G15: =G26+G33 -> 10,200 | H15: 12,544
A16: 21207 | B16: 政府住房基金及对应专项债务收入安排的支出 | C16: 0
A17: 21208 | B17: 国有土地使用权出让收入及对应专项债务收入安排的支出 | C17: 3,293 | D17: 274 | F17: =3019 -> 3,019 | G17: 0 | H17: 1,480 | J17: =C17/H17-1 -> 122.5%
A18: 2120801 | B18: 征地和拆迁补偿支出 | C18: 0 | H18: 1,480
A19: 2120802 | B19: 土地开发支出 | C19: 0
A20: 2120803 | B20: 城市建设支出 | C20: 0
A21: 2120811 | B21: 公共租赁住房支出 | C21: 0
A22: 21209 | B22: 城市公用事业附加及对应专项债务收入安排的支出 | C22: 0 | H22: 0
A23: 2120901 | B23: 城市公共设施 | C23: 0
A24: 2120902 | B24: 城市环境卫生 | C24: 0
A25: 2120999 | B25: 其他城市公用事业附加安排的支出 | C25: 0
A26: 21210 | B26: 国有土地收益基金及对应专项债务收入安排的支出 | C26: 40,907 | D26: 10,907 | F26: 30,000 | G26: 5,000 | H26: 2,783
A27: 2121001 | B27: 征地和拆迁补偿支出 | C27: 0 | G27: 5,000 | H27: 2,228
A28: 2121002 | B28: 土地开发支出 | C28: 0
A29: 2121099 | B29: 其他国有土地收益基金支出 | C29: 0 | H29: 555
A30: 21212 | B30: 新增建设用地土地有偿使用费及对应专项债务收入安排的支出 | C30: 0 | H30: 0
A31: 2121202 | B31: 基本农田建设和保护支出 | C31: 0
A32: 2121203 | B32: 土地整理支出 | C32: 0
A33: 21213 | B33: 城市基础设施配套费及对应专项债务收入安排的支出 | C33: 12,710 | D33: 6,101 | F33: 6,609 | G33: 5,200 | H33: 8,281 | I33: =C33/G33 -> 244.4% | J33: =C33/H33-1 -> 53.5%
A34: 2121301 | B34: 城市公共设施 | C34: 0 | H34: 1,915
A35: 2121302 | B35: 城市环境卫生 | C35: 0 | H35: 597
A36: 2121303 | B36: 公有房屋 | C36: 0
A37: 2121399 | B37: 其他城市基础设施配套费安排的支出 | C37: 0 | G37: 5,200 | H37: 5,769
A38: 21214 | B38: 污水处理费及对应专项债务收入安排的支出 | C38: 131 | D38: 131 | H38: 0
A39: 213 | B39: 农林水支出 | C39: 0 | H39: 0
A40: 21360 | B40: 新菜地开发建设基金及对应专项债务收入安排的支出 | C40: 0
A41: 21363 | B41: 中央水利建设基金支出 | C41: 0
A42: 21364 | B42: 地方水利建设基金支出 | C42: 0
A43: 215 | B43: 资源勘探信息等支出 | C43: 0 | H43: 293
A44: 21505 | B44: 工业和信息产业监管 | C44: 0
A45: 2150570 | B45: 无线电频率占用费安排的支出 | C45: 0
A46: 21561 | B46: 新型墙体材料专项基金及对应专项债务收入安排的支出 | C46: =D46+F46 -> 0 | H46: 293
A47: 2156101 | B47: 技改贴息和补助 | C47: 0
A48: 2156199 | B48: 其他新型墙体材料专项基金支出 | C48: 0 | H48: 293
A49: 21562 | B49: 农网还贷资金支出 | C49: 0 | H49: 0
A50: 21564 | B50: 电力改革预留资产变现收入安排的支出 | C50: 0
A51: 229 | B51: 其他支出 | C51: 4,503 | D51: =SUM(D52:D63) -> 141 | E51: =SUM(E52:E63) -> 0 | F51: =SUM(F52:F63) -> 4,362 | H51: 1,245 | J51: =C51/H51-1 -> 261.7%
A52: 22908 | B52: 彩票发行销售机构业务费安排的支出 | C52: 135 | F52: 135 | H52: 118 | J52: =C52/H52-1 -> 14.4%
A53: 2290804 | B53: 福利彩票销售机构的业务费支出 | C53: 0 | H53: 78
A54: 2290808 | B54: 彩票市场调控资金支出 | C54: 0 | H54: 40
A55: 2290899 | B55: 其他彩票发行销售机构业务费安排的支出 | C55: 0
A56: 22960 | B56: 彩票公益金及对应专项债务收入安排的支出 | C56: 1,969 | F56: 1,969 | H56: 1,127 | J56: =C56/H56-1 -> 74.7%
A57: 2296001 | B57: 用于补充全国社会保障基金的彩票公益金支出 | C57: 0
A58: 2296002 | B58: 用于社会福利的彩票公益金支出 | C58: 0 | H58: 1,069
A59: 2296003 | B59: 用于体育事业的彩票公益金支出 | C59: 0 | H59: 47
A60: 2296004 | B60: 用于教育事业的彩票公益金支出 | C60: 0 | H60: 10
A61: 2296006 | B61: 用于残疾人事业的彩票公益金支出 | C61: 0 | H61: 1
A62: 22961 | B62: 烟草企业上缴专项收入安排的支出 | C62: 0
A63: 22904 | B63: 其他政府性基金及对应专项债务收入安排的支出 | C63: 2,399 | D63: 141 | F63: 2,258 | H63: 0
A64: 232 | B64: 债务付息支出 | C64: 0 | H64: 0
A65: 233 | B65: 债务发行费用支出 | C65: 0 | H65: 0

Sheet 基金转移支付
A1: 附表十二
A2: 西安市阎良区2018年政府性基金转移支付决算表
B3: 单位：万元
A4: 项 目 | B4: 2018年
A6: 专项转移转移支付收入 | B6: =SUM(B7:B21) -> 14,535
A7: 其中:（1）科学技术支出
A8: （2）文化体育与传媒支出
A9: （3）社会保障和就业支出 | B9: 545
A10: （4）节能环保支出
A11: （5）城乡社区支出 | B11: 9,628
A12: （6）农林水支出
A13: （7）交通运输支出
A14: （8）资源勘探信息等支出
A15: （9）商业服务业等支出
A16: （10）金融支出
A17: （11）其他支出 | B17: 4,362
A18: （12）债务付息支出
A19: （13）债务发行费用支出
A22: 备注：无对其他地区转移支付

Sheet 专项债
A1: 附表十三
A2: 西安市阎良区2018年专项债务限额和余额情况决算表
H3: 单位：万元
A4: 项 目 | B4: 2018年年初 | D4: 2018年债务转贷收入 | G4: 2018年债务转贷支出 | H4: 2018年年末
B5: 限额 | C5: 债务余额 | D5: 合计 | E5: 新增债券 | F5: 置换债券 | H5: 限额 | I5: 债务余额
A6: 2018年底政府举债情况 | D6: =SUM(E6:F6) -> 30,000 | E6: 30,000 | H6: 30,000 | I6: 30,000

Sheet 国有资本收入
A1: 附表十四
A2: 西安市阎良区2018年国有资本经营收入决算表
C3: 单位：万元
A4: 项 目 | B4: 2018年决算数 | C4: 与上年同比+－％
A5: 一、利润收入
A6: 二、股权、股息收入
A7: 三、产权转让收入
A8: 四、其他国有资本经营预算收入
A12: 国有资本经营预算收入合计
A13: 转移性收入 | B13: * | C13: *
A14: 国有资本经营预算转移支付收入 | B14: * | C14: *
A15: 上年结余收入 | B15: * | C15: *
A16: 国有资本经营预算收入总计 | B16: * | C16: *

Sheet 国有资本支出
A1: 附表十五
A2: 西安市阎良区2018年国有资本经营支出决算表
C3: 单位：万元
A4: 项 目 | B4: 2018年 预算数 | C4: 与上年同比+－％
A5: 一、国有资本经营预算支出
A6: 1、解决历史遗留问题及改革成本支出
A7: 2、国有企业资本金注入
A8: 3、其他国有资本经营预算支出
A9: 二、国有企业资本金注入
A10: 三、国有企业政策性补贴
A11: 四、其他国有资本经营预算支出
A12: 国有资本经营预算支出合计
A13: 转移性支出 | B13: * | C13: *
A14: 国有资本经营预算调出资金 | B14: * | C14: *
A15: 结转下年 | B15: * | C15: *
A16: 国有资本经营预算支出总计 | B16: * | C16: *

Sheet 社保基金收入
A1: 附表十六
A2: 西安市阎良区2018年社会保险基金预算收入决算表
F3: 单位：万元
A4: 项 目 | B4: 2018年 | D4: 2017年决算数 | E4: 2018年决算数
B5: 预算数 | C5: 决算数 | E5: 占预算% | F5: 与上年比+-%
A6: 一、社会保险基金收入 | B6: =B7+B8+B9 -> 12,924 | C6: =C7+C8+C9 -> 13,609 | D6: 12,092 | E6: =C6/B6 -> 105.3% | F6: =(C6-D6)/D6 -> 12.5%
A7: 1、新型农村合作医疗基金收入 | B7: 3,062 | C7: 3,214 | D7: 2,410 | E7: 105.0% | F7: 33.4%
A8: 2、城乡居民基本养老保险基金收入 | B8: 838 | C8: 813 | D8: 829 | E8: 97.0% | F8: -1.9%
A9: 3、机关事业单位基本养老保险基金 | B9: 9,023 | C9: 9,582 | D9: 8,854 | E9: 106.2% | F9: 8.2%
A10: 二、利息收入 | B10: 131 | C10: 429 | D10: 122 | E10: 328.3% | F10: 250.5%
A11: 三、财政补贴收入 | B11: 20,180 | C11: 16,950 | D11: 20,282 | E11: 84.0% | F11: -16.4%
A12: 四、人员转移收入 | B12: 33 | C12: 33 | D12: 15 | E12: 100.3% | F12: 121.0%
A15: 社会保险基金预算收入合计 | B15: =B6+B10+B11+B12 -> 33,267 | C15: =C6+C10+C11+C12 -> 31,020 | D15: 32,512 | E15: =C15/B15 -> 93.2% | F15: =(C15-D15)/D15 -> -4.6%
A16: 转移性收入 | B16: 15,024 | C16: 17,014 | D16: 12,998 | E16: 113.2% | F16: 30.9%
A17: 社会保险基金预算上年结余 | B17: 15,024 | C17: 17,014 | D17: 12,998 | E17: 113.2% | F17: 30.9%
A18: 社会保险基金预算收入总计 | B18: =B15+B16 -> 48,291 | C18: =C15+C16 -> 48,034 | D18: =D15+D16 -> 45,510 | E18: 99.5% | F18: 5.5%

Sheet 社保基金支出
A1: 附表十七
A2: 西安市阎良区2018年社会保险基金预算支出决算表
E3: 单位：万元
B4: 2018年 | D4: 2017年决算数 | E4: 2018年决算数
A5: 项 目 | B5: 预算数 | C5: 决算数 | E5: 占预算% | F5: 与上年比+-%
A6: 一、新型农村合作医疗基金支出 | B6: =B7+B8+B9 -> 11,257 | C6: =C7+C8+C9 -> 12,990 | D6: 9,820 | E6: =C6/B6 -> 115.4% | F6: =(C6-D6)/D6 -> 32.3%
A7: 1、统筹基金支出 | B7: 10,671 | C7: 12,074 | D7: 8,892 | E7: 113.2% | F7: 35.8%
A8: 2、大病保险支出 | B8: 587 | C8: 916 | D8: 587 | E8: 156.2% | F8: 56.1%
A9: 3、上解上级 | D9: 342
A10: 二、城乡居民基本养老保险基金支出 | B10: =B11+B12+B13+B14 -> 5,957 | C10: =C11+C12+C13+C14 -> 6,672 | D10: 5,521 | E10: =C10/B10 -> 112.0% | F10: 20.8%
A11: 1、基础养老金支出 | B11: 5,630 | C11: 6,351 | D11: 5,217 | E11: 112.8% | F11: 21.7%
A12: 2、个人账户养老金支出 | B12: 264 | C12: 260 | D12: 241 | E12: 98.4% | F12: 7.8%
A13: 3、丧葬抚恤补助支出 | B13: 60 | C13: 54 | D13: 60 | E13: 89.9% | F13: -10.6%
A14: 4、人员转移支出 | B14: 3 | C14: 8 | D14: 3 | E14: 289.6% | F14: 160.6%
A15: 三、机关事业单位基本养老保险基金 | B15: =B16+B17 -> 14,645 | C15: =C16+C17 -> 13,465 | D15: 13,154 | E15: 91.9% | F15: 2.4%
A16: 1、基本养老金 | B16: 14,638 | C16: 13,465 | D16: 13,154 | E16: 92.0% | F16: 2.4%
A17: 2、转移支出 | B17: 7
A18: 社会保险基金预算支出合计 | B18: =B6+B10+B15 -> 31,859 | C18: =C6+C10+C15 -> 33,127 | D18: =D6+D10+D15 -> 28,495 | E18: 104.0% | F18: =(C18-D18)/D18 -> 16.3%
A19: 转移性支出 | B19: 16,432 | C19: 14,907 | D19: 17,015 | E19: 90.7% | F19: -12.4%
A20: 社会保险基金预算年终结余 | B20: 16,432 | C20: 14,907 | D20: 17,015 | E20: 90.7% | F20: -12.4%
A21: 社会保险基金预算支出总计 | B21: =SUM(B18:B19) -> 48,291 | C21: =SUM(C18:C19) -> 48,034 | D21: =SUM(D18:D19) -> 45,510 | E21: 99.5% | F21: 5.5%

Sheet 三公经费
A1: 附表十八
A2: 西安市阎良区2018年“三公”经费决算表
G3: 单位：万元
A4: 项 目 | B4: 合计 | C4: 因公出国（境）费 | D4: 公务接待费 | E4: 合计 | F4: 公务用车购置及运行维护费
F5: 公务用车购置费 | G5: 公务用车运行维护费
A6: 2017年决算数 | B6: =SUM(C6:E6) -> 643 | C6: 9 | D6: 65 | E6: =SUM(F6:G6) -> 569 | F6: 65 | G6: 504
A7: 2018年决算数 | B7: =SUM(C7:E7) -> 771 | D7: 51 | E7: =SUM(F7:G7) -> 720 | F7: 117 | G7: 603
A8: 2018年决算数较2017年增加 | B8: =B7-B6 -> 128 | C8: -9 | D8: -14 | E8: 151 | F8: 52 | G8: 99
A9: 2018年决算数较2017年增长% | B9: =B8/B6 -> 20% | C9: -100% | D9: -21% | E9: 27% | G9: 20%
